[Event "November 21 Early 2023"]
[Site "https://www.chess.com"]
[Date "2023.11.21"]
[Round "5"]
[White "Cherniaiev, Tykhon"]
[Black "Galchenko, Matvey"]
[Result "0-1"]
[Board "13"]
[TimeControl "180+1"]
[WhiteFideId "14182360"]
[BlackFideId "24175480"]
[WhiteElo "2438"]
[BlackElo "2406"]
[WhiteTeam "UKR"]
[BlackTeam "FID"]
[WhiteClock "0:00:00"]
[BlackClock "0:00:05"]

1. Nf3 {[%clk 0:03:00]}  c5 {[%clk 0:02:55]} 2. c4 {[%clk 0:03:01]}  g6 {[%clk 0:02:55]} 3. g3 {[%clk 0:03:01]}  Bg7 {[%clk 0:02:53]} 4. Bg2 {[%clk 0:03:02]}  Nc6 {[%clk 0:02:54]} 5. O-O {[%clk 0:03:02]}  e6 {[%clk 0:02:54]} 6. Nc3 {[%clk 0:03:02]}  Nge7 {[%clk 0:02:55]} 7. a3 {[%clk 0:03:01]}  O-O {[%clk 0:02:55]} 8. Rb1 {[%clk 0:03:01]}  d6 {[%clk 0:02:54]} 9. d3 {[%clk 0:02:56]}  b6 {[%clk 0:02:54]} 10. Bd2 {[%clk 0:02:50]}  Bb7 {[%clk 0:02:54]} 11. b4 {[%clk 0:02:51]}  Qd7 {[%clk 0:02:54]} 12. Qc2 {[%clk 0:02:48]}  Rac8 {[%clk 0:02:53]} 13. Rfc1 {[%clk 0:02:47]}  Rfd8 {[%clk 0:02:49]} 14. Qa4 {[%clk 0:02:29]}  Nf5 {[%clk 0:02:17]} 15. b5 {[%clk 0:02:23]}  Ncd4 {[%clk 0:01:42]} 16. Nxd4 {[%clk 0:01:05]}  cxd4 {[%clk 0:01:41]} 17. Ne4 {[%clk 0:01:05]}  Bxe4 {[%clk 0:01:06]} 18. Bxe4 {[%clk 0:01:06]}  Ne7 {[%clk 0:01:02]} 19. Qa6 {[%clk 0:01:04]}  Rc7 {[%clk 0:00:36]} 20. a4 {[%clk 0:01:02]}  Rb8 {[%clk 0:00:34]} 21. a5 {[%clk 0:01:00]}  h6 {[%clk 0:00:29]} 22. axb6 {[%clk 0:01:00]}  axb6 {[%clk 0:00:30]} 23. Bg2 {[%clk 0:00:57]}  Kh7 {[%clk 0:00:29]} 24. Qa3 {[%clk 0:00:51]}  Rbc8 {[%clk 0:00:26]} 25. Bb4 {[%clk 0:00:41]}  Ra7 {[%clk 0:00:26]} 26. Qb2 {[%clk 0:00:39]}  Rac7 {[%clk 0:00:22]} 27. Ra1 {[%clk 0:00:28]}  d5 {[%clk 0:00:20]} 28. Qb3 {[%clk 0:00:18]}  dxc4 {[%clk 0:00:20]} 29. Rxc4 {[%clk 0:00:19]}  Qxb5 {[%clk 0:00:16]} 30. Rac1 {[%clk 0:00:12]}  Nd5 {[%clk 0:00:06]} 31. Bxd5 {[%clk 0:00:04]}  Qxd5 {[%clk 0:00:06]} 32. Be1 {[%clk 0:00:02]}  Rxc4 {[%clk 0:00:04]} 33. dxc4 {[%clk 0:00:03]}  Qc6 {[%clk 0:00:04]} 34. Qd3 {[%clk 0:00:03]}  Rd8 {[%clk 0:00:04]} 35. Bb4 {[%clk 0:00:03]}  e5 {[%clk 0:00:04]} 36. f3 {[%clk 0:00:02]}  f5 {[%clk 0:00:05]} 37. Qa3 {[%clk 0:00:02]}  e4 {[%clk 0:00:06]} 38. Qa7 {[%clk 0:00:02]}  Rd7 {[%clk 0:00:05]} 39. Qb8 {[%clk 0:00:01]}  exf3 {[%clk 0:00:05]} 40. exf3 {[%clk 0:00:00]}  d3 {[%clk 0:00:05]} 0-1

[Event "November 21 Early 2023"]
[Site "https://www.chess.com"]
[Date "2023.11.21"]
[Round "5"]
[White "Hua, Lefong"]
[Black "Rohith Krishna S"]
[Result "0-1"]
[Board "19"]
[TimeControl "180+1"]
[WhiteFideId "2602253"]
[BlackFideId "46617051"]
[WhiteElo "2739"]
[BlackElo "2394"]
[WhiteTeam "CAN"]
[BlackTeam "IND"]
[WhiteClock "0:00:05"]
[BlackClock "0:00:23"]

1. d4 {[%clk 0:03:00]}  Nf6 {[%clk 0:02:30]} 2. c4 {[%clk 0:03:00]}  e6 {[%clk 0:02:31]} 3. Nc3 {[%clk 0:03:01]}  d5 {[%clk 0:02:31]} 4. cxd5 {[%clk 0:03:01]}  exd5 {[%clk 0:02:31]} 5. Bg5 {[%clk 0:03:01]}  c6 {[%clk 0:02:31]} 6. e3 {[%clk 0:03:02]}  Be7 {[%clk 0:02:32]} 7. Bd3 {[%clk 0:03:02]}  O-O {[%clk 0:02:32]} 8. Qc2 {[%clk 0:03:02]}  h6 {[%clk 0:02:33]} 9. Bh4 {[%clk 0:03:03]}  Nbd7 {[%clk 0:02:34]} 10. Nge2 {[%clk 0:03:03]}  Re8 {[%clk 0:02:34]} 11. O-O {[%clk 0:03:03]}  Ne4 {[%clk 0:02:35]} 12. Bxe7 {[%clk 0:03:03]}  Qxe7 {[%clk 0:02:36]} 13. Rae1 {[%clk 0:03:04]}  Ndf6 {[%clk 0:02:34]} 14. Nc1 {[%clk 0:03:04]}  a5 {[%clk 0:02:29]} 15. f3 {[%clk 0:03:00]}  Ng5 {[%clk 0:02:19]} 16. Qf2 {[%clk 0:02:46]}  Ne6 {[%clk 0:02:16]} 17. h3 {[%clk 0:02:34]}  Bd7 {[%clk 0:02:12]} 18. e4 {[%clk 0:02:27]}  Qb4 {[%clk 0:02:11]} 19. N1e2 {[%clk 0:02:11]}  a4 {[%clk 0:02:06]} 20. e5 {[%clk 0:02:06]}  Nh7 {[%clk 0:02:03]} 21. f4 {[%clk 0:02:05]}  Nhf8 {[%clk 0:01:39]} 22. f5 {[%clk 0:02:03]}  Nc7 {[%clk 0:01:40]} 23. Qh4 {[%clk 0:01:27]}  c5 {[%clk 0:01:36]} 24. f6 {[%clk 0:01:23]}  Re6 {[%clk 0:01:04]} 25. fxg7 {[%clk 0:01:10]}  Kxg7 {[%clk 0:01:04]} 26. Nf4 {[%clk 0:00:53]}  Qxd4+ {[%clk 0:01:02]} 27. Kh1 {[%clk 0:00:53]}  Rae8 {[%clk 0:00:38]} 28. Bf5 {[%clk 0:00:28]}  Rxe5 {[%clk 0:00:30]} 29. Qg4+ {[%clk 0:00:28]}  Ng6 {[%clk 0:00:29]} 30. Rxe5 {[%clk 0:00:24]}  Rxe5 {[%clk 0:00:28]} 31. Bxd7 {[%clk 0:00:20]}  Rg5 {[%clk 0:00:28]} 32. Nh5+ {[%clk 0:00:18]}  Kf8 {[%clk 0:00:29]} 33. Qf3 {[%clk 0:00:16]}  Ne5 {[%clk 0:00:29]} 34. Qf6 {[%clk 0:00:16]}  Rxh5 {[%clk 0:00:22]} 35. Qd8+ {[%clk 0:00:16]}  Kg7 {[%clk 0:00:22]} 36. Qxc7 {[%clk 0:00:16]}  Qd3 {[%clk 0:00:19]} 37. Re1 {[%clk 0:00:13]}  Qd2 {[%clk 0:00:18]} 38. Re2 {[%clk 0:00:08]}  Qc1+ {[%clk 0:00:18]} 39. Kh2 {[%clk 0:00:08]}  Qf4+ {[%clk 0:00:18]} 40. g3 {[%clk 0:00:08]}  Nf3+ {[%clk 0:00:18]} 41. Kg2 {[%clk 0:00:09]}  Qxc7 {[%clk 0:00:19]} 42. Bg4 {[%clk 0:00:08]}  Rg5 {[%clk 0:00:19]} 43. Kxf3 {[%clk 0:00:08]}  d4 {[%clk 0:00:19]} 44. Ne4 {[%clk 0:00:08]}  Qc6 {[%clk 0:00:19]} 45. Kf2 {[%clk 0:00:06]}  Re5 {[%clk 0:00:20]} 46. Bf3 {[%clk 0:00:06]}  f5 {[%clk 0:00:21]} 47. Nd2 {[%clk 0:00:05]}  Rxe2+ {[%clk 0:00:21]} 48. Kxe2 {[%clk 0:00:05]}  Qb5+ {[%clk 0:00:22]} 49. Kd1 {[%clk 0:00:05]}  Qxb2 {[%clk 0:00:22]} 50. Bd5 {[%clk 0:00:06]}  a3 {[%clk 0:00:22]} 51. Bb3 {[%clk 0:00:05]}  b5 {[%clk 0:00:23]} 52. Bd5 {[%clk 0:00:05]}  c4 {[%clk 0:00:23]} 0-1

[Event "November 21 Early 2023"]
[Site "https://www.chess.com"]
[Date "2023.11.21"]
[Round "5"]
[White "Parligras, Mircea-Emilian"]
[Black "Erigaisi Arjun"]
[Result "0-1"]
[Board "21"]
[TimeControl "180+1"]
[WhiteFideId "1204297"]
[BlackFideId "35009192"]
[WhiteElo "2486"]
[BlackElo "2729"]
[WhiteTeam "ROU"]
[BlackTeam "IND"]
[WhiteClock "0:00:01"]
[BlackClock "0:00:40"]

1. e4 {[%clk 0:03:00]}  c6 {[%clk 0:03:00]} 2. d4 {[%clk 0:03:00]}  d5 {[%clk 0:03:00]} 3. Nc3 {[%clk 0:02:58]}  dxe4 {[%clk 0:03:00]} 4. Nxe4 {[%clk 0:02:58]}  Bf5 {[%clk 0:03:01]} 5. Ng3 {[%clk 0:02:58]}  Bg6 {[%clk 0:03:01]} 6. h4 {[%clk 0:02:57]}  h6 {[%clk 0:03:01]} 7. Nf3 {[%clk 0:02:57]}  e6 {[%clk 0:03:01]} 8. h5 {[%clk 0:02:53]}  Bh7 {[%clk 0:03:01]} 9. Bd3 {[%clk 0:02:54]}  Bxd3 {[%clk 0:03:01]} 10. Qxd3 {[%clk 0:02:55]}  Nf6 {[%clk 0:03:02]} 11. Bd2 {[%clk 0:02:54]}  c5 {[%clk 0:02:56]} 12. Qb5+ {[%clk 0:02:34]}  Qd7 {[%clk 0:02:55]} 13. Qxd7+ {[%clk 0:02:31]}  Nbxd7 {[%clk 0:02:56]} 14. O-O-O {[%clk 0:02:19]}  Rc8 {[%clk 0:02:49]} 15. Rhe1 {[%clk 0:02:04]}  cxd4 {[%clk 0:02:48]} 16. Nxd4 {[%clk 0:02:03]}  Bc5 {[%clk 0:02:49]} 17. Be3 {[%clk 0:01:44]}  Ng4 {[%clk 0:02:24]} 18. Ne4 {[%clk 0:01:39]}  Nxe3 {[%clk 0:02:24]} 19. Rxe3 {[%clk 0:01:31]}  Nf6 {[%clk 0:02:24]} 20. Nxf6+ {[%clk 0:01:18]}  gxf6 {[%clk 0:02:25]} 21. g4 {[%clk 0:01:05]}  Rg8 {[%clk 0:02:13]} 22. f3 {[%clk 0:01:03]}  Rg5 {[%clk 0:02:09]} 23. Red3 {[%clk 0:00:57]}  Rd5 {[%clk 0:02:02]} 24. Nb3 {[%clk 0:00:51]}  Rxd3 {[%clk 0:02:02]} 25. Rxd3 {[%clk 0:00:51]}  Bb6 {[%clk 0:02:02]} 26. Nd2 {[%clk 0:00:47]}  Ke7 {[%clk 0:01:58]} 27. Ne4 {[%clk 0:00:46]}  Bc7 {[%clk 0:01:53]} 28. Kd1 {[%clk 0:00:42]}  Be5 {[%clk 0:01:51]} 29. b3 {[%clk 0:00:41]}  b5 {[%clk 0:01:48]} 30. Kd2 {[%clk 0:00:26]}  Rc6 {[%clk 0:01:44]} 31. a4 {[%clk 0:00:19]}  bxa4 {[%clk 0:01:43]} 32. bxa4 {[%clk 0:00:20]}  a5 {[%clk 0:01:24]} 33. Rb3 {[%clk 0:00:19]}  Rc4 {[%clk 0:01:24]} 34. Rb7+ {[%clk 0:00:18]}  Kf8 {[%clk 0:01:25]} 35. Ra7 {[%clk 0:00:14]}  Rxa4 {[%clk 0:01:21]} 36. Nc5 {[%clk 0:00:14]}  Ra3 {[%clk 0:01:08]} 37. Ra8+ {[%clk 0:00:12]}  Ke7 {[%clk 0:00:52]} 38. Ra7+ {[%clk 0:00:12]}  Kd6 {[%clk 0:00:51]} 39. Ne4+ {[%clk 0:00:11]}  Kd5 {[%clk 0:00:46]} 40. c3 {[%clk 0:00:07]}  f5 {[%clk 0:00:41]} 41. gxf5 {[%clk 0:00:06]}  exf5 {[%clk 0:00:41]} 42. Nf2 {[%clk 0:00:05]}  Ra2+ {[%clk 0:00:39]} 43. Ke1 {[%clk 0:00:03]}  Bxc3+ {[%clk 0:00:39]} 44. Kf1 {[%clk 0:00:03]}  Rxf2+ {[%clk 0:00:40]} 45. Kxf2 {[%clk 0:00:01]}  Bd4+ {[%clk 0:00:40]} 0-1

[Event "November 21 Early 2023"]
[Site "https://www.chess.com"]
[Date "2023.11.21"]
[Round "5"]
[White "Sokolovsky, Yahli"]
[Black "Lazavik, Denis"]
[Result "0-1"]
[Board "22"]
[TimeControl "180+1"]
[WhiteFideId "2820242"]
[BlackFideId "13515110"]
[WhiteElo "2389"]
[BlackElo "2556"]
[WhiteTeam "ISR"]
[BlackTeam "BLR"]
[WhiteClock "0:00:00"]
[BlackClock "0:00:14"]

1. b3 {[%clk 0:03:00]}  d5 {[%clk 0:02:59]} 2. Bb2 {[%clk 0:03:01]}  Nf6 {[%clk 0:02:59]} 3. e3 {[%clk 0:02:59]}  c6 {[%clk 0:03:00]} 4. Nf3 {[%clk 0:02:59]}  Bf5 {[%clk 0:03:00]} 5. d4 {[%clk 0:02:59]}  e6 {[%clk 0:03:00]} 6. Bd3 {[%clk 0:02:58]}  Nbd7 {[%clk 0:03:00]} 7. Nbd2 {[%clk 0:02:57]}  Bd6 {[%clk 0:02:59]} 8. Ne5 {[%clk 0:02:57]}  O-O {[%clk 0:02:58]} 9. f4 {[%clk 0:02:54]}  a5 {[%clk 0:02:52]} 10. a4 {[%clk 0:02:51]}  Bb4 {[%clk 0:02:39]} 11. O-O {[%clk 0:02:42]}  Bxd2 {[%clk 0:02:37]} 12. Qxd2 {[%clk 0:02:43]}  Ne4 {[%clk 0:02:37]} 13. Qe2 {[%clk 0:02:43]}  f6 {[%clk 0:02:36]} 14. Nf3 {[%clk 0:02:30]}  Bg4 {[%clk 0:02:35]} 15. Qe1 {[%clk 0:02:20]}  f5 {[%clk 0:02:31]} 16. c4 {[%clk 0:02:03]}  Bxf3 {[%clk 0:02:24]} 17. gxf3 {[%clk 0:01:56]}  Nef6 {[%clk 0:02:24]} 18. cxd5 {[%clk 0:01:35]}  Nxd5 {[%clk 0:02:15]} 19. Kh1 {[%clk 0:01:30]}  Rf6 {[%clk 0:02:11]} 20. Rg1 {[%clk 0:01:30]}  Qe8 {[%clk 0:02:07]} 21. Rg5 {[%clk 0:01:28]}  Qf7 {[%clk 0:02:03]} 22. Qf2 {[%clk 0:01:24]}  h6 {[%clk 0:01:55]} 23. Rg3 {[%clk 0:01:22]}  Kh8 {[%clk 0:01:46]} 24. Rag1 {[%clk 0:01:22]}  Rg8 {[%clk 0:01:47]} 25. Qd2 {[%clk 0:01:11]}  b6 {[%clk 0:01:35]} 26. Bb1 {[%clk 0:01:06]}  Nf8 {[%clk 0:01:14]} 27. e4 {[%clk 0:00:28]}  fxe4 {[%clk 0:01:14]} 28. fxe4 {[%clk 0:00:29]}  Nxf4 {[%clk 0:01:14]} 29. d5 {[%clk 0:00:29]}  Rg6 {[%clk 0:01:02]} 30. dxc6 {[%clk 0:00:14]}  Rxg3 {[%clk 0:01:01]} 31. Rxg3 {[%clk 0:00:15]}  N8g6 {[%clk 0:00:58]} 32. Rxg6 {[%clk 0:00:12]}  Qxg6 {[%clk 0:00:51]} 33. Qxf4 {[%clk 0:00:13]}  e5 {[%clk 0:00:48]} 34. Bxe5 {[%clk 0:00:13]}  Qxc6 {[%clk 0:00:48]} 35. Bd3 {[%clk 0:00:13]}  Rd8 {[%clk 0:00:38]} 36. Be2 {[%clk 0:00:07]}  Qg6 {[%clk 0:00:36]} 37. Bg4 {[%clk 0:00:05]}  Re8 {[%clk 0:00:32]} 38. Bf5 {[%clk 0:00:03]}  Qc6 {[%clk 0:00:23]} 39. Kg2 {[%clk 0:00:03]}  Qc2+ {[%clk 0:00:21]} 40. Kh3 {[%clk 0:00:04]}  Qxb3+ {[%clk 0:00:21]} 41. Kh4 {[%clk 0:00:04]}  Kg8 {[%clk 0:00:18]} 42. Bg6 {[%clk 0:00:02]}  Rf8 {[%clk 0:00:17]} 43. Bf5 {[%clk 0:00:01]}  Qf7 {[%clk 0:00:16]} 44. Qg4 {[%clk 0:00:01]}  Qe7+ {[%clk 0:00:16]} 45. Kh5 {[%clk 0:00:01]}  Qxe5 {[%clk 0:00:17]} 46. Qg6 {[%clk 0:00:02]}  Rf6 {[%clk 0:00:16]} 47. Qh7+ {[%clk 0:00:02]}  Kf7 {[%clk 0:00:17]} 48. Qh8 {[%clk 0:00:01]}  Qxh2+ {[%clk 0:00:17]} 49. Kg4 {[%clk 0:00:01]}  Qg2+ {[%clk 0:00:17]} 50. Kf4 {[%clk 0:00:02]}  Qf2+ {[%clk 0:00:17]} 51. Kg4 {[%clk 0:00:03]}  Qe2+ {[%clk 0:00:15]} 52. Kf4 {[%clk 0:00:03]}  Qd2+ {[%clk 0:00:14]} 53. Kf3 {[%clk 0:00:03]}  Qd6 {[%clk 0:00:13]} 54. Qc8 {[%clk 0:00:03]}  g6 {[%clk 0:00:12]} 55. Qb7+ {[%clk 0:00:03]}  Kg8 {[%clk 0:00:13]} 56. Qc8+ {[%clk 0:00:04]}  Kg7 {[%clk 0:00:13]} 57. Qe8 {[%clk 0:00:01]}  gxf5 {[%clk 0:00:13]} 58. e5 {[%clk 0:00:02]}  Qd5+ {[%clk 0:00:13]} 59. Kf4 {[%clk 0:00:00]}  Re6 {[%clk 0:00:14]} 0-1

[Event "November 21 Early 2023"]
[Site "https://www.chess.com"]
[Date "2023.11.21"]
[Round "5"]
[White "Paravyan, David"]
[Black "Tatarinov, Dmitry"]
[Result "1-0"]
[Board "24"]
[TimeControl "180+1"]
[WhiteFideId "4194985"]
[BlackFideId "24160067"]
[WhiteElo "2566"]
[BlackElo "2344"]
[WhiteTeam "FID"]
[BlackTeam "RUS"]
[WhiteClock "0:01:11"]
[BlackClock "0:00:40"]

1. d4 {[%clk 0:03:00]}  Nf6 {[%clk 0:02:59]} 2. c4 {[%clk 0:02:59]}  e6 {[%clk 0:03:00]} 3. Nc3 {[%clk 0:02:59]}  d5 {[%clk 0:02:59]} 4. cxd5 {[%clk 0:02:59]}  exd5 {[%clk 0:02:59]} 5. Bg5 {[%clk 0:02:59]}  c6 {[%clk 0:02:54]} 6. e3 {[%clk 0:02:59]}  h6 {[%clk 0:02:54]} 7. Bh4 {[%clk 0:02:59]}  Be7 {[%clk 0:02:49]} 8. Bd3 {[%clk 0:02:58]}  O-O {[%clk 0:02:48]} 9. Nge2 {[%clk 0:02:57]}  Nh5 {[%clk 0:02:39]} 10. Bxe7 {[%clk 0:02:55]}  Qxe7 {[%clk 0:02:40]} 11. O-O {[%clk 0:02:53]}  Nd7 {[%clk 0:02:27]} 12. Qd2 {[%clk 0:02:52]}  Nhf6 {[%clk 0:02:23]} 13. Rae1 {[%clk 0:02:51]}  c5 {[%clk 0:02:19]} 14. Ng3 {[%clk 0:02:46]}  Re8 {[%clk 0:01:58]} 15. Nf5 {[%clk 0:02:44]}  Qf8 {[%clk 0:01:58]} 16. Nb5 {[%clk 0:02:38]}  Rd8 {[%clk 0:01:55]} 17. f3 {[%clk 0:01:52]}  a6 {[%clk 0:01:51]} 18. Nbd6 {[%clk 0:01:51]}  g6 {[%clk 0:01:42]} 19. e4 {[%clk 0:01:50]}  gxf5 {[%clk 0:01:38]} 20. Nxf5 {[%clk 0:01:50]}  cxd4 {[%clk 0:01:24]} 21. e5 {[%clk 0:01:48]}  Nxe5 {[%clk 0:01:19]} 22. Nxh6+ {[%clk 0:01:46]}  Kh8 {[%clk 0:01:05]} 23. Rxe5 {[%clk 0:01:45]}  Be6 {[%clk 0:01:05]} 24. Qf4 {[%clk 0:01:38]}  Qg7 {[%clk 0:01:02]} 25. Qh4 {[%clk 0:01:36]}  Nh7 {[%clk 0:00:52]} 26. Rh5 {[%clk 0:01:25]}  Qf6 {[%clk 0:00:50]} 27. Nxf7+ {[%clk 0:01:23]}  Kg8 {[%clk 0:00:51]} 28. Ng5 {[%clk 0:01:14]}  Nxg5 {[%clk 0:00:47]} 29. Rxg5+ {[%clk 0:01:15]}  Kf8 {[%clk 0:00:47]} 30. Rg8+ {[%clk 0:01:11]}  Ke7 {[%clk 0:00:40]} 31. Rg7+ {[%clk 0:01:11]} 1-0

[Event "November 21 Early 2023"]
[Site "https://www.chess.com"]
[Date "2023.11.21"]
[Round "5"]
[White "Kovalenko, Igor"]
[Black "Orujov2008"]
[Result "0-1"]
[Board "27"]
[TimeControl "180+1"]
[WhiteFideId "14117908"]
[WhiteElo "2574"]
[BlackElo "2729"]
[WhiteTeam "UKR"]
[WhiteClock "0:00:20"]
[BlackClock "0:00:13"]

1. c4 {[%clk 0:03:00]}  Nf6 {[%clk 0:02:59]} 2. Nc3 {[%clk 0:03:00]}  e6 {[%clk 0:02:56]} 3. e4 {[%clk 0:03:00]}  c5 {[%clk 0:02:53]} 4. g3 {[%clk 0:02:55]}  d5 {[%clk 0:02:52]} 5. cxd5 {[%clk 0:02:52]}  exd5 {[%clk 0:02:50]} 6. e5 {[%clk 0:02:52]}  Ng4 {[%clk 0:02:47]} 7. f4 {[%clk 0:02:51]}  d4 {[%clk 0:02:42]} 8. Ne4 {[%clk 0:02:50]}  Nc6 {[%clk 0:02:43]} 9. h3 {[%clk 0:02:50]}  Nh6 {[%clk 0:02:40]} 10. Nf3 {[%clk 0:02:50]}  Be6 {[%clk 0:02:34]} 11. Bb5 {[%clk 0:02:40]}  Bd5 {[%clk 0:02:31]} 12. Qe2 {[%clk 0:02:40]}  Qd7 {[%clk 0:02:21]} 13. g4 {[%clk 0:02:36]}  O-O-O {[%clk 0:02:18]} 14. d3 {[%clk 0:02:34]}  f5 {[%clk 0:02:14]} 15. exf6 {[%clk 0:02:30]}  Bxe4 {[%clk 0:02:14]} 16. Qxe4 {[%clk 0:02:26]}  gxf6 {[%clk 0:02:12]} 17. Bxc6 {[%clk 0:02:25]}  bxc6 {[%clk 0:02:09]} 18. Ne5 {[%clk 0:02:13]}  fxe5 {[%clk 0:02:05]} 19. f5 {[%clk 0:02:11]}  Qd5 {[%clk 0:02:01]} 20. Bg5 {[%clk 0:02:01]}  Qxe4+ {[%clk 0:01:56]} 21. dxe4 {[%clk 0:02:02]}  Rd7 {[%clk 0:01:57]} 22. Rc1 {[%clk 0:02:01]}  Nf7 {[%clk 0:01:52]} 23. Bf6 {[%clk 0:01:56]}  Rg8 {[%clk 0:01:50]} 24. Ke2 {[%clk 0:01:56]}  Bg7 {[%clk 0:01:44]} 25. Bxg7 {[%clk 0:01:55]}  Rxg7 {[%clk 0:01:45]} 26. Rxc5 {[%clk 0:01:56]}  Kc7 {[%clk 0:01:42]} 27. Kd3 {[%clk 0:01:50]}  h5 {[%clk 0:01:35]} 28. Rg1 {[%clk 0:01:50]}  hxg4 {[%clk 0:01:33]} 29. hxg4 {[%clk 0:01:50]}  Rh7 {[%clk 0:01:27]} 30. g5 {[%clk 0:01:48]}  Rh3+ {[%clk 0:01:24]} 31. Kc2 {[%clk 0:01:48]}  Nd6 {[%clk 0:01:15]} 32. Rxe5 {[%clk 0:01:48]}  Nc4 {[%clk 0:01:11]} 33. Rc5 {[%clk 0:01:40]}  d3+ {[%clk 0:01:09]} 34. Kc3 {[%clk 0:01:37]}  d2+ {[%clk 0:01:08]} 35. Kxc4 {[%clk 0:01:37]}  d1=Q {[%clk 0:01:03]} 36. Rxd1 {[%clk 0:01:37]}  Rxd1 {[%clk 0:01:04]} 37. Re5 {[%clk 0:01:34]}  Rh2 {[%clk 0:01:02]} 38. g6 {[%clk 0:01:26]}  Rc2+ {[%clk 0:00:59]} 39. Kb3 {[%clk 0:01:26]}  Rf2 {[%clk 0:00:52]} 40. Re7+ {[%clk 0:01:21]}  Rd7 {[%clk 0:00:49]} 41. Re8 {[%clk 0:01:08]}  Rd8 {[%clk 0:00:45]} 42. Re7+ {[%clk 0:01:06]}  Kd6 {[%clk 0:00:45]} 43. Re6+ {[%clk 0:01:02]}  Kd7 {[%clk 0:00:39]} 44. Rf6 {[%clk 0:00:58]}  Re8 {[%clk 0:00:39]} 45. g7 {[%clk 0:00:57]}  Rg2 {[%clk 0:00:35]} 46. Kc4 {[%clk 0:00:47]}  Rxg7 {[%clk 0:00:33]} 47. Kc5 {[%clk 0:00:41]}  Rxe4 {[%clk 0:00:31]} 48. Rd6+ {[%clk 0:00:40]}  Kc7 {[%clk 0:00:28]} 49. Rxc6+ {[%clk 0:00:40]}  Kb7 {[%clk 0:00:26]} 50. Rf6 {[%clk 0:00:41]}  Rd7 {[%clk 0:00:19]} 51. b4 {[%clk 0:00:30]}  a5 {[%clk 0:00:14]} 52. bxa5 {[%clk 0:00:28]}  Re5+ {[%clk 0:00:14]} 53. Kb4 {[%clk 0:00:26]}  Rd4+ {[%clk 0:00:14]} 54. Kc3 {[%clk 0:00:26]}  Rf4 {[%clk 0:00:14]} 55. Rb6+ {[%clk 0:00:23]}  Ka7 {[%clk 0:00:13]} 56. f6 {[%clk 0:00:20]}  Ref5 {[%clk 0:00:13]} 0-1

[Event "November 21 Early 2023"]
[Site "https://www.chess.com"]
[Date "2023.11.21"]
[Round "5"]
[White "Ter-Sahakyan, Samvel"]
[Black "Pourramezanali, Amirreza"]
[Result "1-0"]
[Board "30"]
[TimeControl "180+1"]
[WhiteFideId "13302531"]
[BlackFideId "12511412"]
[WhiteElo "2556"]
[BlackElo "2302"]
[WhiteTeam "ARM"]
[BlackTeam "IRI"]
[WhiteClock "0:01:21"]
[BlackClock "0:00:42"]

1. d4 {[%clk 0:02:59]}  d5 {[%clk 0:02:59]} 2. c4 {[%clk 0:02:59]}  e6 {[%clk 0:02:59]} 3. Nf3 {[%clk 0:02:59]}  Nf6 {[%clk 0:02:59]} 4. g3 {[%clk 0:02:59]}  Bb4+ {[%clk 0:02:59]} 5. Nbd2 {[%clk 0:02:58]}  O-O {[%clk 0:02:58]} 6. Bg2 {[%clk 0:02:58]}  b6 {[%clk 0:02:59]} 7. O-O {[%clk 0:02:57]}  Bb7 {[%clk 0:02:59]} 8. Ne5 {[%clk 0:02:54]}  Nfd7 {[%clk 0:02:55]} 9. Nd3 {[%clk 0:02:51]}  Be7 {[%clk 0:02:52]} 10. e4 {[%clk 0:02:50]}  c5 {[%clk 0:02:31]} 11. exd5 {[%clk 0:02:48]}  exd5 {[%clk 0:02:30]} 12. cxd5 {[%clk 0:02:48]}  cxd4 {[%clk 0:02:30]} 13. d6 {[%clk 0:02:46]}  Bxg2 {[%clk 0:02:23]} 14. dxe7 {[%clk 0:02:46]}  Qxe7 {[%clk 0:02:24]} 15. Kxg2 {[%clk 0:02:47]}  Nc5 {[%clk 0:02:25]} 16. Nf3 {[%clk 0:02:44]}  Nc6 {[%clk 0:02:23]} 17. Re1 {[%clk 0:02:41]}  Qb7 {[%clk 0:02:21]} 18. Kg1 {[%clk 0:02:17]}  Nxd3 {[%clk 0:02:16]} 19. Qxd3 {[%clk 0:02:17]}  Nb4 {[%clk 0:02:16]} 20. Qb3 {[%clk 0:02:17]}  d3 {[%clk 0:01:42]} 21. Qxb4 {[%clk 0:02:15]}  Qxf3 {[%clk 0:01:43]} 22. Bd2 {[%clk 0:02:02]}  Rfe8 {[%clk 0:01:37]} 23. Qf4 {[%clk 0:02:00]}  Qd5 {[%clk 0:01:34]} 24. Rxe8+ {[%clk 0:01:51]}  Rxe8 {[%clk 0:01:34]} 25. Re1 {[%clk 0:01:51]}  Rxe1+ {[%clk 0:01:31]} 26. Bxe1 {[%clk 0:01:51]}  h6 {[%clk 0:01:27]} 27. a3 {[%clk 0:01:48]}  Qb3 {[%clk 0:01:21]} 28. Bc3 {[%clk 0:01:45]}  Qd1+ {[%clk 0:01:16]} 29. Kg2 {[%clk 0:01:44]}  Qe2 {[%clk 0:01:17]} 30. Qe3 {[%clk 0:01:38]}  Qd1 {[%clk 0:00:52]} 31. Qe8+ {[%clk 0:01:30]}  Kh7 {[%clk 0:00:52]} 32. Qxf7 {[%clk 0:01:30]}  Qg4 {[%clk 0:00:52]} 33. Qf3 {[%clk 0:01:25]}  Qd7 {[%clk 0:00:53]} 34. Qe3 {[%clk 0:01:21]}  Qd5+ {[%clk 0:00:52]} 35. f3 {[%clk 0:01:22]}  b5 {[%clk 0:00:42]} 36. Qe4+ {[%clk 0:01:21]} 1-0